bitfinex/quotes_ETHUSD_20241119
["timestamp","ask_amount","ask_price","bid_price","bid_amount"]
[1732014415525,3.8035,3125.1,3124.6,3.2004]
[1732014415920,3.20002,3125.0,3124.5,3.95265]
[1732014416301,3.20002,3125.0,3124.5,3.95264]
[1732014416540,3.8035,3125.1,3124.6,3.2004]
[1732014416718,7.00342,3125.1,3124.5,3.95264]
[1732014417043,3.20001,3125.0,3124.5,3.95264]
[1732014417607,3.20001,3125.0,3124.5,7.1531]
[1732014418007,3.19985,3125.2,3124.6,3.20034]
[1732014418223,3.1999,3125.1,3124.6,3.20034]
[1732014418616,6.97229,3125.3,3124.7,3.20028]
[1732014418822,3.19981,3125.2,3124.7,3.20028]
[1732014419017,3.19989,3125.1,3124.5,3.95261]
[1732014419223,3.19989,3125.1,3124.6,3.20038]
[1732014419762,3.19989,3125.1,3124.5,3.95261]
[1732014420054,3.20001,3125.0,3124.5,3.95261]
[1732014420463,3.20012,3124.9,3124.4,3.20058]
[1732014420619,0.8089,3124.9,3124.3,4.476299]
[1732014420819,0.8089,3124.9,3124.4,3.20061]
[1732014420820,4.00901,3124.9,3124.4,3.20061]
[1732014421015,4.00875,3125.2,3124.7,3.20025]
[1732014421260,0.8089,3125.2,3124.9,3.20001]
[1732014421470,4.0087,3125.2,3124.7,3.20026]
[1732014421763,0.8089,3125.2,3124.8,3.20015]
[1732014422120,0.8089,3125.2,3124.8,3.20014]
[1732014422315,0.8089,3125.2,3124.9,3.2001]
[1732014422554,0.8089,3125.2,3124.8,3.20014]
[1732014423274,4.0087,3125.2,3124.8,3.2002]
[1732014424052,4.0087,3125.2,3124.7,0.7942]
[1732014424250,4.0087,3125.2,3124.7,3.9945]
[1732014424558,0.8089,3125.2,3124.8,3.20014]
[1732014424721,0.8089,3125.2,3124.9,3.20006]
[1732014424922,7.16285,3125.4,3124.9,3.20006]
[1732014425459,3.19969,3125.3,3124.7,3.99442]
[1732014425632,0.65651746,3125.3,3124.5,3.20051]
[1732014425836,0.7636,3125.4,3124.4,0.8098]
[1732014425837,3.20015,3124.9,3124.4,0.8098]
[1732014426047,4.03026,3125.0,3124.5,3.2005]
[1732014426343,4.03026,3125.0,3124.4,3.2006]
[1732014426550,4.03026,3125.0,3124.5,3.20043]
[1732014427237,0.8302,3125.0,3124.3,1.32692002]
[1732014427577,0.8302,3125.0,3124.6,3.20031]
[1732014428166,0.8302,3125.0,3124.5,3.20042]
[1732014428167,0.8302,3125.0,3124.7,3.20029]
[1732014429564,0.7942,3125.2,3124.7,3.20025]
[1732014429771,0.7942,3125.2,3124.8,3.20013]
[1732014430537,3.99404,3125.2,3124.7,3.2003]
[1732014430877,3.19995,3125.1,3124.6,4.0213]
[1732014431381,3.99404,3125.2,3124.7,3.20028]
[1732014431382,0.7942,3125.2,3124.7,3.20028]
[1732014431583,0.7942,3125.2,3124.8,3.20014]
[1732014431741,3.99405,3125.2,3124.7,3.20028]
[1732014432297,3.99405,3125.2,3124.7,3.20024]
[1732014432444,3.1999,3125.1,3124.7,3.20024]
[1732014432644,0.7942,3125.2,3124.7,3.20023]
[1732014432865,0.7942,3125.2,3124.6,0.8209]
[1732014433186,3.20001,3125.0,3124.6,0.8209]
[1732014433387,3.1999,3125.1,3124.3,7.81891116]
[1732014433590,6.79933,3125.1,3124.3,4.61821116]
[1732014433749,3.2,3125.0,3124.5,3.2005]
[1732014433948,3.59935,3125.1,3124.5,3.20043]
[1732014434159,3.59935,3125.1,3124.6,3.2004]
[1732014434160,3.1999,3125.1,3124.6,3.2004]
[1732014434372,3.99399,3125.2,3124.7,3.20024]
[1732014434599,3.99399,3125.2,3124.7,6.40048]
[1732014434804,3.99399,3125.2,3124.6,3.2004]
[1732014435020,3.19989,3125.1,3124.6,3.2004]
[1732014435174,3.20001,3125.0,3124.4,1.32692002]
[1732014435373,0.7942,3125.2,3124.5,3.20044]
[1732014435677,3.1999,3125.1,3124.6,3.20035]
[1732014436017,0.7942,3125.2,3124.8,3.20019]
[1732014436315,0.7942,3125.2,3124.9,3.20009]
[1732014436627,0.7942,3125.2,3125.0,3.19999]
[1732014436989,0.7942,3125.2,3124.9,3.20004]
[1732014437919,0.7942,3125.2,3124.7,3.20025]
[1732014438223,0.7942,3125.2,3124.8,3.20018]
[1732014438823,0.7942,3125.2,3124.9,3.20008]
[1732014439003,0.7942,3125.2,3124.9,3.20004]
[1732014440979,3.19991,3125.1,3124.6,3.20039]
[1732014441179,0.782,3125.3,3124.8,3.20015]
[1732014441384,0.782,3125.3,3124.9,3.20005]
[1732014441687,3.19966,3125.4,3124.8,3.20015]
[1732014441890,3.8067,3125.7,3125.3,3.19959]
[1732014442453,3.0,3125.7,3125.4,3.96887]
[1732014442671,3.3381523,3125.9,3125.4,3.96887]
[1732014442672,0.8321,3125.8,3125.4,3.96887]
[1732014442879,1.48581523,3125.8,3125.4,0.7693]
[1732014443367,0.1390823,3125.9,3125.6,3.19928]
[1732014443765,0.1390823,3125.9,3125.7,3.19922]
[1732014444142,0.1390823,3125.9,3125.8,3.19918]
[1732014444731,0.1390823,3125.9,3125.7,0.319928]
[1732014444957,0.1390823,3125.9,3125.7,3.519188]
[1732014445757,0.1390823,3125.9,3125.7,3.519128]
[1732014446235,0.1390823,3125.9,3125.7,0.319928]
[1732014446444,0.1390823,3125.9,3125.5,3.19945]
[1732014446972,0.1390823,3125.9,3125.4,0.7693]
[1732014447175,0.1390823,3125.9,3125.5,3.19948]
[1732014447382,3.3381723,3125.9,3125.4,0.7693]
[1732014448052,3.3381723,3125.9,3125.4,3.96882]
[1732014448247,0.1390823,3125.9,3125.5,3.19947]
[1732014449550,0.1390823,3125.9,3125.7,3.19928]
[1732014449884,0.1390823,3125.9,3125.8,0.45262]
[1732014450038,0.1390823,3125.9,3125.5,3.19942]
[1732014450657,0.1390823,3125.9,3125.4,0.7693]
[1732014450658,3.3381623,3125.9,3125.4,0.7693]
[1732014450948,3.1995,3125.5,3125.1,0.8195]
[1732014451156,3.1995,3125.5,3124.9,3.20002]
[1732014451352,3.1995,3125.5,3124.9,6.40005]
[1732014451548,3.1995,3125.5,3124.8,2.14642002]
[1732014451881,2.10512002,3125.4,3124.5,3.20045]
[1732014452050,2.10512002,3125.4,3124.6,0.320045]
[1732014452051,3.2,3125.0,3124.6,0.320045]
[1732014452835,3.19981,3125.2,3124.6,3.520435]
[1732014453049,3.19996,3125.1,3124.6,0.320045]
[1732014453437,3.19996,3125.1,3124.5,4.01994]
[1732014453765,3.19996,3125.1,3124.5,7.22039]
[1732014454082,3.19996,3125.1,3124.5,4.01994]
[1732014454276,3.20004,3125.0,3124.5,4.01994]
[1732014454639,3.20011,3124.9,3124.5,0.8195]
[1732014454843,3.99841,3124.9,3124.4,3.20055]
[1732014455043,3.99841,3124.9,3124.4,3.58429731]
[1732014456259,0.7983,3124.9,3124.4,3.58429731]
[1732014456735,0.7983,3124.9,3124.4,6.78483731]
[1732014457145,4.02736,3125.1,3124.6,3.20039]
[1732014457386,4.02736,3125.1,3124.5,0.50983274]
[1732014457753,3.20011,3124.9,3124.5,0.50983274]
[1732014457978,6.40029,3124.9,3124.3,0.8153]
[1732014458186,3.20001,3125.0,3124.4,3.20057]
[1732014458347,3.20001,3125.0,3124.5,3.20049]
[1732014458739,0.8274,3125.1,3124.6,3.20035]
[1732014458943,0.8274,3125.1,3124.4,0.46527931]
[1732014459248,4.02739,3125.1,3124.5,3.20049]
[1732014460158,4.02739,3125.1,3124.5,6.40092]
[1732014460357,4.02739,3125.1,3124.6,3.20039]
[1732014460593,0.8274,3125.1,3124.7,3.2003]
[1732014461129,3.95281,3125.3,3124.8,3.20019]
[1732014462179,3.19983,3125.2,3124.7,1.13983]
[1732014462423,3.19983,3125.2,3124.7,0.8198]
[1732014462623,3.1999,3125.1,3124.7,0.8198]
[1732014462794,3.95288,3125.3,3124.7,0.8198]
[1732014462993,3.1998,3125.2,3124.7,4.0201]
[1732014463377,3.1998,3125.2,3124.5,3.20046]
[1732014463579,3.20007,3125.0,3124.5,3.20046]
[1732014463812,3.20028,3124.8,3124.4,0.7974]
[1732014464557,3.20011,3124.9,3124.4,0.7974]
[1732014464735,0.7531,3125.3,3124.4,0.7974]
[1732014464893,0.7531,3125.3,3124.5,3.75043]
[1732014465220,3.20008,3125.0,3124.5,0.55]
[1732014465390,3.20008,3125.0,3124.6,0.4548]
[1732014465583,3.20016,3124.9,3124.5,0.55]
[1732014465785,3.20016,3124.9,3124.4,0.7974]
[1732014466194,3.19985,3125.2,3124.4,3.99792]
[1732014466426,3.20016,3124.9,3124.4,0.7974]
[1732014466732,3.20043,3124.6,3124.4,0.7974]
[1732014467888,3.20051,3124.5,3124.4,0.7974]
[1732014468312,3.20026,3124.8,3124.4,0.7974]
[1732014468620,3.20043,3124.6,3124.4,0.7974]
[1732014469520,6.3382023,3125.9,3124.4,0.7974]
[1732014469521,6.40009,3125.0,3124.4,0.7974]
[1732014469729,3.20015,3124.9,3124.4,3.99801]
[1732014469942,3.2,3125.0,3124.5,3.20051]
[1732014470099,3.19991,3125.1,3124.7,0.7964]
[1732014470287,4.08437472,3125.9,3124.8,3.99651]
[1732014470288,0.826,3125.8,3124.8,3.99651]
[1732014470487,3.19945,3125.6,3125.0,3.99638]
[1732014470726,3.19923,3125.8,3125.0,6.31471188]
[1732014471026,0.1390823,3125.9,3125.1,0.7964]
[1732014471201,3.19934,3125.7,3125.1,3.99622]
[1732014471630,3.19939,3125.6,3125.1,3.99622]
[1732014471937,3.19949,3125.5,3125.1,0.7964]
[1732014472147,6.39905,3125.5,3125.1,0.7964]
[1732014472442,3.19959,3125.4,3125.1,0.7964]
[1732014472606,3.19949,3125.5,3125.1,0.7964]
[1732014472811,3.19961,3125.4,3125.1,0.7964]
[1732014473045,3.19969,3125.3,3125.1,0.7964]
[1732014475039,3.19939,3125.6,3125.2,0.399623]
[1732014475258,6.39885,3125.6,3125.2,0.399623]
[1732014475444,3.19939,3125.6,3125.2,0.399623]
[1732014476366,3.19939,3125.6,3125.3,0.4395843]
[1732014477964,0.1390823,3125.9,3125.5,3.19945]
[1732014478166,3.19923,3125.8,3125.4,0.8204]
[1732014478357,3.19923,3125.8,3125.4,1.222403]
[1732014479142,3.19923,3125.8,3125.4,0.8204]
[1732014479468,3.19934,3125.7,3125.4,0.8204]
[1732014479632,3.19944,3125.6,3125.4,0.8204]
[1732014482956,3.19944,3125.6,3125.5,0.6430541]
[1732014484157,3.19928,3125.7,3125.5,0.6430541]
[1732014484358,3.1992,3125.8,3125.5,0.6430541]
[1732014484555,6.39847,3125.8,3125.5,0.6430541]
[1732014484747,3.19929,3125.7,3125.5,0.6430541]
[1732014485875,3.19938,3125.6,3125.5,0.6430541]
[1732014487262,0.1390823,3125.9,3125.5,2.24822401]
[1732014487576,0.1390823,3125.9,3125.8,1.32620409]
[1732014488778,0.1390823,3125.9,3125.8,3.19918]
[1732014489072,0.1390823,3125.9,3125.8,4.53548]
[1732014489286,0.1390823,3125.9,3125.8,4.98584445]
[1732014490776,0.1390823,3125.9,3125.8,4.53548]
[1732014492741,0.1390823,3125.9,3125.8,1.3363]
[1732014492960,0.1390823,3125.9,3125.8,4.53548]
[1732014495998,0.1390823,3125.9,3125.8,4.85518]
[1732014496300,0.1390823,3125.9,3125.8,8.09729205]
[1732014496753,0.1390823,3125.9,3125.8,8.41699205]
[1732014496953,3.19794,3127.1,3126.8,0.7999]
[1732014497368,3.19788,3127.1,3126.8,0.7999]
[1732014497784,3.19788,3127.1,3126.6,1.3032]
[1732014497996,3.19788,3127.1,3126.6,0.7532]
[1732014498201,3.19808,3126.9,3126.6,0.7532]
[1732014498496,0.8071,3127.6,3126.0,0.3197]
[1732014498497,3.19841,3126.6,3126.0,0.7532]
[1732014498796,3.19826,3126.7,3126.1,3.74879]
[1732014499702,3.19826,3126.7,3126.1,0.55]
[1732014499703,6.39661,3126.7,3126.1,0.55]
[1732014499901,3.19856,3126.4,3126.0,0.7532]
[1732014500196,3.19867,3126.3,3126.0,0.7532]
[1732014500383,3.19867,3126.3,3126.0,1.148436]
[1732014500769,3.19867,3126.3,3125.7,0.8311]
[1732014501096,6.3979,3126.1,3125.7,1.48467177]
[1732014501398,3.19898,3126.0,3125.5,3.1114476]
[1732014501620,3.19898,3126.0,3125.4,4.03062]
[1732014501923,3.19898,3126.0,3125.5,0.319952]
[1732014502062,3.19894,3126.1,3125.5,0.319952]
[1732014502288,6.3979,3126.1,3125.5,3.519422]
[1732014502521,3.19899,3126.0,3125.6,0.57362805]
[1732014505044,3.19888,3126.1,3125.6,0.57362805]
[1732014505241,3.1988,3126.2,3125.6,3.77294805]
[1732014505543,3.19887,3126.1,3125.7,0.319952]
[1732014505739,3.1988,3126.2,3125.7,3.519222]
[1732014505974,3.1986,3126.4,3125.7,3.519222]
[1732014506153,3.19869,3126.3,3125.8,6.3106076]
[1732014506314,3.19869,3126.3,3125.8,6.6625298]
[1732014506650,3.19838,3126.6,3126.1,3.19886]
[1732014506808,3.19838,3126.6,3126.0,3.19897]
[1732014507148,3.19838,3126.6,3126.1,3.74881]
[1732014507848,3.19866,3126.4,3125.9,1.32695785]
[1732014508217,3.1987,3126.3,3125.9,1.32695785]
[1732014508539,3.1987,3126.3,3126.0,0.63491352]
[1732014510643,3.19861,3126.4,3126.0,0.63491352]
[1732014510985,3.19842,3126.6,3126.0,3.83387352]
[1732014511176,3.19834,3126.7,3126.1,0.8294]
[1732014511469,3.19834,3126.7,3126.1,4.52976157]
[1732014511672,3.19837,3126.6,3126.1,1.33091157]
[1732014512262,3.19826,3126.7,3126.1,4.52976157]
[1732014512467,3.19828,3126.7,3126.2,3.19876]
[1732014512665,3.19828,3126.7,3126.3,0.7534]
[1732014512869,3.19821,3126.8,3126.3,3.95201]
[1732014513070,3.19834,3126.7,3126.3,0.7534]
[1732014513246,3.19837,3126.6,3126.3,0.7534]
[1732014515182,3.19827,3126.7,3126.3,1.25491157]
[1732014515480,3.19827,3126.7,3126.3,0.7534]
[1732014515776,3.19827,3126.7,3126.4,0.3197]
[1732014516077,3.19827,3126.7,3126.3,0.7534]
[1732014516984,3.19836,3126.6,3126.3,0.7534]
[1732014519514,3.19848,3126.5,3126.3,0.7534]
[1732014520829,3.19841,3126.6,3126.3,0.7534]
[1732014522211,3.19852,3126.5,3126.3,0.7534]
[1732014522636,6.39708,3126.5,3126.2,1.32539724]
[1732014522933,3.19862,3126.4,3126.1,0.8007]
[1732014523803,3.19847,3126.5,3126.1,0.8007]
[1732014524713,3.19847,3126.5,3126.1,3.99955]
[1732014524915,3.19836,3126.6,3126.2,1.32539724]
[1732014525144,3.19834,3126.7,3126.2,1.32539724]
[1732014525326,3.19834,3126.7,3126.2,4.52414724]
[1732014525531,3.19821,3126.8,3126.3,3.19866]
[1732014525702,3.19827,3126.7,3126.2,4.52416724]
[1732014525902,4.00172,3126.9,3126.3,0.21260972]
[1732014526200,3.19818,3126.8,3126.3,3.41124972]
[1732014527241,6.39643,3126.8,3126.3,3.41124972]
[1732014527611,3.19818,3126.8,3126.3,0.21260972]
[1732014527814,3.19827,3126.7,3126.3,0.21260972]
[1732014528804,3.19818,3126.8,3126.3,0.21260972]
[1732014529147,6.39643,3126.8,3126.3,0.21260972]
[1732014529509,3.19818,3126.8,3126.3,0.21260972]
[1732014529818,3.19827,3126.7,3126.3,0.21260972]
[1732014530518,3.19836,3126.6,3126.3,0.21260972]
[1732014530723,3.19826,3126.7,3126.3,0.21260972]
[1732014534143,3.19843,3126.6,3126.1,3.99951]
[1732014534360,3.19843,3126.6,3126.1,5.32490724]
[1732014535142,3.19843,3126.6,3126.1,5.32495724]
[1732014535347,3.19847,3126.5,3126.1,0.8007]
[1732014535508,3.19856,3126.4,3126.0,0.63491352]
[1732014535712,3.19869,3126.3,3126.0,0.63491352]
[1732014536419,3.19869,3126.3,3125.9,0.81]
[1732014536605,0.8037,3126.4,3125.7,3.7978]
[1732014536606,3.19888,3126.1,3125.7,3.7978]
[1732014536806,6.39783,3126.1,3125.7,3.7978]
[1732014537128,3.19906,3126.0,3125.7,0.7978]
[1732014537505,3.19908,3125.9,3125.7,0.7978]
[1732014537737,3.19908,3125.9,3125.5,5.12899724]
[1732014538156,3.19928,3125.7,3125.3,2.11319724]
[1732014538461,3.19949,3125.5,3125.3,0.7878]
[1732014538633,3.19949,3125.5,3125.3,0.64013713]
[1732014538946,4.00453,3125.9,3125.3,1.96553437]
[1732014539112,0.8054,3126.1,3125.7,1.32539724]
[1732014539309,3.1987,3126.3,3125.7,1.32539724]
[1732014539310,3.1987,3126.3,3125.7,4.52465724]
[1732014539534,3.19882,3126.2,3125.7,4.52465724]
[1732014539739,3.1987,3126.3,3125.9,1.32539724]
[1732014540354,3.19883,3126.2,3125.7,1.85430296]
[1732014540515,3.1987,3126.3,3125.7,1.32539724]
[1732014540716,3.19889,3126.1,3125.7,1.32539724]
[1732014541254,3.1987,3126.3,3125.7,1.32539724]
[1732014541433,3.19887,3126.1,3125.7,1.85430996]
[1732014541822,3.1987,3126.3,3125.7,5.05357996]
[1732014542017,3.1987,3126.3,3125.7,1.85430996]
[1732014542259,3.19852,3126.5,3125.9,4.52440724]
[1732014542481,3.19852,3126.5,3126.0,4.01732]
[1732014542791,3.19831,3126.7,3126.0,4.01732]
[1732014542941,3.19831,3126.7,3126.1,4.52420724]
[1732014543138,3.19831,3126.7,3126.2,3.19868]
[1732014543338,3.19831,3126.7,3126.1,1.32539724]
[1732014543534,3.19838,3126.6,3126.1,4.52425724]
[1732014544196,3.19831,3126.7,3126.1,4.52425724]
[1732014546082,3.19831,3126.7,3126.1,5.14934917]
[1732014546679,3.1981,3126.9,3126.3,3.19865]
[1732014546881,3.1981,3126.9,3126.4,0.7627]
[1732014547177,3.19826,3126.7,3126.4,0.7627]
[1732014547413,3.19816,3126.8,3126.4,0.7627]
[1732014547979,3.19807,3126.9,3126.4,0.7627]
[1732014548201,3.19821,3126.8,3126.4,0.7627]
[1732014548608,3.19786,3127.1,3126.5,1.32539724]
[1732014548781,3.198,3127.0,3126.5,1.32539724]
[1732014549385,3.19786,3127.1,3126.5,1.32539724]
[1732014549613,6.39579,3127.1,3126.5,4.52378724]
[1732014549823,3.19786,3127.1,3126.5,4.52378724]
[1732014550383,3.19785,3127.1,3126.5,4.52378724]
[1732014550784,3.19796,3127.0,3126.5,4.52378724]
[1732014551500,3.19785,3127.1,3126.5,7.72218724]
[1732014551711,6.39579,3127.1,3126.5,4.52378724]
[1732014551885,3.19803,3127.0,3126.4,3.96121]
[1732014552086,3.19803,3127.0,3126.4,4.357344]
[1732014552520,3.19812,3126.9,3126.4,1.158834]
[1732014553428,3.19809,3126.9,3126.5,0.49744605]
[1732014554421,3.19798,3127.0,3126.5,3.69589605]
[1732014555172,3.19798,3127.0,3126.5,0.49744605]
[1732014555478,3.19798,3127.0,3126.4,3.96124]
[1732014555759,3.19785,3127.1,3126.5,3.19841]
[1732014555976,3.19802,3127.0,3126.5,3.19841]
[1732014556667,3.19785,3127.1,3126.5,3.19841]
[1732014556872,6.39576,3127.1,3126.6,0.396111]
[1732014557021,3.19797,3127.0,3126.6,0.396111]
[1732014557541,6.39599,3127.0,3126.6,0.396111]
[1732014557725,3.19797,3127.0,3126.6,0.396111]
[1732014558362,3.19797,3127.0,3126.4,0.7627]
[1732014558568,3.19797,3127.0,3126.4,3.9612]
[1732014558867,3.19786,3127.1,3126.5,3.19837]
[1732014559069,3.19786,3127.1,3126.6,3.594447]
[1732014559279,3.19801,3127.0,3126.4,0.7627]
[1732014559760,3.19801,3127.0,3126.5,3.19843]
[1732014559976,3.19801,3127.0,3126.6,0.396113]
[1732014561340,7.14673,3127.2,3126.6,3.594443]
[1732014561551,3.19791,3127.1,3126.6,0.396113]
[1732014561751,3.19801,3127.0,3126.6,0.396113]
[1732014562030,3.19791,3127.1,3126.5,3.19842]
[1732014562031,3.19791,3127.1,3126.7,0.3594533]
[1732014562651,3.19791,3127.1,3126.5,6.39682]
[1732014562857,3.19797,3127.0,3126.5,3.1984]
[1732014563993,3.19774,3127.3,3126.6,4.02144]
[1732014564297,3.19774,3127.3,3126.7,3.19823]
[1732014564503,3.19776,3127.2,3126.7,3.19823]
[1732014565600,3.19785,3127.1,3126.6,0.8231]
[1732014565799,3.19785,3127.1,3126.6,4.55613972]
[1732014566107,6.39577,3127.1,3126.6,4.55613972]
[1732014566325,3.19775,3127.2,3126.7,0.55]
[1732014566612,3.19788,3127.1,3126.7,0.90889033]
[1732014566814,3.19775,3127.2,3126.7,4.10713033]
[1732014567121,3.19775,3127.2,3126.8,0.49302303]
[1732014568921,3.19775,3127.2,3126.7,0.55]
[1732014569325,3.19805,3127.0,3126.7,0.55]
[1732014570401,3.19807,3126.9,3126.7,0.55]
[1732014570607,3.19805,3127.0,3126.7,0.55]
[1732014570821,3.19808,3126.9,3126.7,0.55]
[1732014573228,3.19791,3127.1,3126.7,0.55]
[1732014573432,3.19795,3127.0,3126.7,0.55]
[1732014573727,6.39583,3127.1,3126.7,0.55]
[1732014574205,3.19796,3127.0,3126.7,0.81984972]
[1732014575022,0.7568,3127.4,3126.7,0.81984972]
[1732014575023,3.19769,3127.3,3126.7,0.81984972]
[1732014575222,3.19784,3127.2,3126.7,0.81984972]
[1732014575529,3.19787,3127.1,3126.8,0.16429497]
[1732014576399,3.19781,3127.2,3126.8,0.16429497]
[1732014577641,3.19769,3127.3,3126.8,0.16429497]
[1732014577941,3.19784,3127.2,3126.8,0.16429497]
[1732014579293,3.19769,3127.3,3126.8,0.16429497]
[1732014579505,3.19775,3127.2,3126.8,0.16429497]
[1732014581546,3.19769,3127.3,3126.8,0.16429497]
[1732014581748,3.19769,3127.3,3126.9,0.8205]
[1732014582067,3.19769,3127.3,3126.9,1.13350419]
[1732014582351,3.19746,3127.5,3126.9,1.13350419]
[1732014582560,3.19766,3127.3,3126.9,1.13350419]
[1732014582759,0.7903,3127.8,3126.9,1.13350419]
[1732014583135,3.19733,3127.6,3127.0,0.55]
[1732014583339,3.19733,3127.6,3127.0,3.74792]
[1732014583520,0.7903,3127.8,3127.0,0.55]
[1732014583720,3.19733,3127.6,3127.1,0.26958972]
[1732014583962,3.19761,3127.4,3127.1,0.26958972]
[1732014584243,3.19762,3127.4,3127.1,0.26958972]
[1732014585033,3.19761,3127.4,3127.1,0.26958972]
[1732014585258,3.19774,3127.2,3127.1,0.26958972]
[1732014585569,3.19774,3127.2,3127.0,0.55]
[1732014586061,3.1976,3127.4,3127.0,0.55]
[1732014586223,3.19767,3127.3,3127.0,0.55]
[1732014588619,3.19739,3127.6,3127.0,3.74793]
[1732014588820,3.19739,3127.6,3127.1,0.456843]
[1732014589024,3.19744,3127.5,3127.1,0.456843]
[1732014589258,3.19754,3127.4,3127.0,0.55]
[1732014590660,3.19744,3127.5,3127.0,0.55]
[1732014590961,3.19744,3127.5,3127.1,0.456852]
[1732014591129,3.19719,3127.8,3127.2,3.95504]
[1732014591328,3.19719,3127.8,3127.4,0.7573]
[1732014591531,3.19725,3127.7,3127.4,0.7573]
[1732014591759,3.19719,3127.8,3127.4,0.7573]
[1732014592132,3.19742,3127.6,3127.4,0.7573]
[1732014593865,3.19746,3127.5,3127.1,0.7892]
[1732014594067,3.19746,3127.5,3127.2,0.55]
[1732014594569,6.39498,3127.5,3127.2,0.55]
[1732014594725,3.19697,3128.0,3127.4,3.74753]
[1732014594933,3.19694,3128.0,3127.6,1.3392]
[1732014595129,6.39394,3128.0,3127.6,1.3392]
[1732014595353,3.19694,3128.0,3127.6,1.3392]
[1732014595743,3.19678,3128.2,3127.6,1.3392]
[1732014595942,3.19669,3128.3,3127.8,0.55]
[1732014596140,3.19679,3128.2,3127.8,0.55]
[1732014596355,3.19679,3128.2,3127.9,0.374717]
[1732014598154,3.19679,3128.2,3127.7,3.74722]
[1732014598348,3.19679,3128.2,3127.8,0.8229]
[1732014600361,0.8178,3128.5,3127.8,0.8229]
[1732014600993,3.19688,3128.1,3127.8,0.8229]
[1732014601198,3.19698,3128.0,3127.8,0.8229]
[1732014601404,3.19698,3128.0,3127.7,0.55]
[1732014601773,3.19698,3128.0,3127.8,0.19835328]
[1732014602499,3.19703,3127.9,3127.8,0.19835328]
[1732014603585,3.19741,3127.6,3127.3,0.7938]
[1732014603796,3.19753,3127.5,3127.2,0.64382483]
[1732014604669,3.19741,3127.6,3127.2,0.64382483]
[1732014604871,3.19759,3127.4,3127.0,0.7664]
[1732014605083,0.7872,3127.5,3127.0,0.7664]
[1732014605301,3.1974,3127.6,3127.0,3.96429]
[1732014605502,3.1974,3127.6,3127.1,0.396429]
[1732014605704,1.32539724,3128.3,3127.1,0.396429]
[1732014605705,1.32539724,3128.3,3127.2,0.8086]
[1732014605905,3.19701,3128.0,3127.3,3.99426]
[1732014606102,3.19705,3127.9,3127.4,0.49715105]
[1732014606302,2.11259724,3128.5,3127.5,0.55]
[1732014606509,3.19614,3128.8,3127.3,0.7967]
[1732014606510,0.7573,3127.8,3127.3,0.7967]
[1732014606713,3.19752,3127.5,3127.3,0.7967]
[1732014606887,3.19727,3127.7,3127.3,0.7967]
[1732014607327,6.39458,3127.7,3127.3,0.7967]
[1732014607551,3.19735,3127.6,3127.3,0.7967]
[1732014607711,3.19735,3127.6,3127.3,1.26164056]
[1732014607894,3.19746,3127.5,3127.3,0.7967]
[1732014608408,0.7573,3127.8,3127.1,1.44578558]
[1732014608609,3.19749,3127.5,3127.2,0.55]
[1732014608996,3.19755,3127.4,3127.2,0.55]
[1732014609618,3.19755,3127.4,3127.1,0.7909]
[1732014609823,3.1974,3127.6,3127.1,0.7909]
[1732014609824,3.1974,3127.6,3127.1,1.189792]
[1732014610027,3.19725,3127.7,3127.1,7.585382]
[1732014610314,3.19714,3127.8,3127.2,5.07305724]
[1732014610521,3.19714,3127.8,3127.4,0.55]
[1732014610874,3.19724,3127.7,3127.4,0.55]
[1732014611078,3.19713,3127.8,3127.4,0.55]
[1732014611349,3.19699,3128.0,3127.5,0.7869]
[1732014611622,3.19704,3127.9,3127.5,0.7869]
[1732014611825,3.19716,3127.8,3127.5,0.9700588]
[1732014611978,3.19716,3127.8,3127.5,0.7869]
[1732014613144,3.19699,3128.0,3127.5,0.7869]
[1732014613350,3.19713,3127.8,3127.5,0.7869]
[1732014613697,3.1973,3127.7,3127.5,0.7869]
[1732014613899,3.1973,3127.7,3127.3,0.55]
[1732014614104,3.1973,3127.7,3127.3,1.00230772]
[1732014614438,3.19734,3127.6,3127.3,1.00230772]
[1732014614639,3.19733,3127.7,3127.3,1.00230772]
[1732014614846,3.19733,3127.7,3127.4,0.17855077]
[1732014615388,6.39466,3127.7,3127.4,0.17855077]
[1732014615681,3.19735,3127.6,3127.4,0.17855077]
[1732014616178,3.19733,3127.7,3127.4,0.17855077]
[1732014616529,3.19707,3127.9,3127.4,0.17855077]
[1732014616844,3.19715,3127.8,3127.4,0.17855077]
[1732014617035,6.39435,3127.8,3127.4,0.17855077]
[1732014617236,3.19725,3127.7,3127.4,0.17855077]
[1732014617435,3.19715,3127.8,3127.4,0.17855077]
[1732014617983,3.19715,3127.8,3127.5,0.39261708]
[1732014618284,3.19703,3127.9,3127.6,0.7863]
[1732014618776,3.19675,3128.2,3127.6,0.7863]
[1732014618927,3.19693,3128.0,3127.6,0.7863]
[1732014619278,6.39392,3128.0,3127.7,0.55]
[1732014619575,3.19693,3128.0,3127.7,0.55]
[1732014619879,3.19753,3127.5,3127.3,0.751]
[1732014620173,3.19754,3127.4,3127.3,0.751]
[1732014620379,4.52205724,3128.3,3127.3,0.751]
[1732014620380,3.20603,3128.9,3127.5,0.8123]
[1732014620583,3.20603,3128.9,3127.7,0.8123]
[1732014620584,0.7781,3128.7,3127.7,0.8123]
[1732014620730,3.19668,3128.3,3127.7,0.8123]
[1732014620926,3.19674,3128.2,3127.7,0.8123]
[1732014621171,3.19652,3128.4,3127.7,0.8123]
[1732014621472,3.19708,3127.9,3127.7,0.8123]
[1732014622664,3.19692,3128.1,3127.7,0.8123]
[1732014622870,3.19693,3128.0,3127.7,0.8123]
[1732014623255,3.19693,3128.0,3127.7,1.213272]